bitfinex/quotes_ETHUSD_20220106
["timestamp","ask_amount","ask_price","bid_price","bid_amount"]
[1641458096143,0.651,3410.7,3410.6,0.01763694]
[1641458096795,0.951,3410.7,3410.6,0.01763694]
[1641458097200,0.951,3410.7,3410.6,3.694e-05]
[1641458097396,0.951,3410.7,3409.1,3.48016199]
[1641458097397,3.55,3410.6,3409.1,3.46768262]
[1641458097598,2.1999216,3410.2,3409.8,6.60157758]
[1641458097797,2.0,3409.9,3409.8,6.60157758]
[1641458097996,3.0,3409.9,3409.8,0.73443468]
[1641458098200,3.63104883,3409.9,3409.8,0.73898207]
[1641458098396,3.63104883,3409.9,3409.8,0.00454739]
[1641458098597,3.63104883,3409.9,3409.8,0.00582407]
[1641458099999,3.63104883,3409.9,3409.4,2.97180168]
[1641458100437,0.63104883,3409.9,3409.5,0.00170527]
[1641458100638,2.0,3409.6,3409.5,0.00170527]
[1641458101042,2.63093547,3409.6,3409.5,0.30519553]
[1641458102447,8.48683547,3409.6,3409.5,0.30519553]
[1641458103044,8.48954208,3409.6,3409.5,0.30519553]
[1641458103344,5.8559,3409.6,3409.5,0.30519553]
[1641458104181,1.04466885,3411.1,3410.2,0.30349026]
[1641458104387,1.0,3411.1,3411.0,0.30349026]
[1641458104585,6.8633,3411.1,3411.0,0.30349026]
[1641458104786,12.7266,3411.1,3411.0,0.30349026]
[1641458105586,12.7266,3411.1,3411.0,1.42325297]
[1641458105785,12.7266,3411.1,3411.0,0.30349026]
[1641458106685,13.0266,3411.1,3411.0,0.30349026]
[1641458106885,13.3266,3411.1,3411.0,0.30349026]
[1641458108549,13.3266,3411.1,3411.0,0.30445313]
[1641458109150,12.7266,3411.1,3411.0,0.30445313]
[1641458110354,13.0266,3411.1,3411.0,0.30445313]
[1641458112097,12.7266,3411.1,3411.0,0.30445313]
[1641458112907,12.7266,3411.1,3411.0,1.03713313]
[1641458113098,2.9179,3411.1,3411.0,2.03713313]
[1641458113398,1.5373,3411.1,3411.0,2.03713313]
[1641458113599,1.36422221,3412.5,3411.0,2.40107414]
[1641458113998,1.36422221,3412.5,3412.4,0.30349026]
[1641458114398,5.64483327,3412.5,3411.0,0.00096287]
[1641458114604,5.64483327,3412.5,3411.0,3.63428278]
[1641458114605,0.73287,3412.3,3411.0,3.63428278]
[1641458114798,4.07322719,3412.2,3411.0,3.63428278]
[1641458114998,0.73295,3412.1,3411.0,3.63428278]
[1641458115200,3.89284471,3412.0,3411.0,3.63428278]
[1641458115444,4.18633182,3412.0,3411.1,1.37539399]
[1641458115642,0.01193689,3411.9,3411.1,1.37539399]
[1641458116045,0.01136847,3411.8,3411.1,1.37539399]
[1641458116246,0.01136847,3411.8,3411.7,1.03657758]
[1641458116449,3.32561417,3412.1,3411.7,3.16206695]
[1641458116450,3.02561417,3412.1,3411.7,3.16206695]
[1641458116846,3.02561417,3411.8,3411.7,3.16206695]
[1641458117248,3.03698264,3411.8,3411.7,3.16206695]
[1641458117447,3.03698264,3411.8,3411.7,4.16206695]
[1641458117649,0.01136847,3411.8,3411.7,4.67870283]
[1641458117851,7.4317645,3413.0,3411.7,4.67870283]
[1641458117852,1.36422221,3413.0,3411.8,6.35]
[1641458118051,1.36422221,3413.0,3411.9,0.351]
[1641458118249,0.00625266,3412.9,3412.2,0.73245]
[1641458118448,0.00625266,3412.9,3412.3,0.351]
[1641458118649,0.00568423,3412.8,3412.3,0.351]
[1641458119048,0.00511581,3412.7,3412.6,1.75275759]
[1641458119893,0.00511581,3412.7,3412.3,2.98194837]
[1641458120094,0.00511581,3412.7,3412.6,0.16563588]
[1641458120295,3.85447066,3413.8,3412.6,0.16563588]
[1641458120495,2.3,3413.6,3412.6,0.16563588]
[1641458120698,0.00852635,3413.3,3412.6,0.16563588]
[1641458120896,2.97003529,3412.7,3412.5,2.10224172]
[1641458121097,1.37274856,3413.3,3412.6,1.15662381]
[1641458121098,1.28081543,3413.3,3412.6,1.15662381]
[1641458121304,1.28081543,3413.3,3412.7,0.73222]
[1641458121497,1.28081543,3413.3,3412.8,23.341]
[1641458121697,1.28081543,3413.3,3412.9,1.0]
[1641458121897,1.79234894,3413.5,3413.0,0.351]
[1641458122097,1.79234894,3413.5,3413.3,1.34310805]
[1641458122297,1.79234894,3414.4,3413.3,2.07514805]
[1641458122498,1.79234894,3414.4,3413.7,0.73203]
[1641458122697,1.79234894,3414.4,3413.8,0.351]
[1641458122938,1.79234894,3414.4,3413.6,1.16562015]
[1641458123139,1.79234894,3414.4,3413.7,0.351]
[1641458123343,2.68854279,3414.7,3413.8,4.12592864]
[1641458123547,1.75751103,3415.3,3414.4,2.11681562]
[1641458123744,1.75751103,3415.3,3413.8,1.98745055]
[1641458123745,0.00682108,3414.6,3413.8,1.98745055]
[1641458124144,0.00625265,3414.5,3413.8,1.98745055]
[1641458124344,0.00625265,3414.5,3413.2,3.46768262]
[1641458124345,0.00625265,3414.5,3413.7,1.98745055]
[1641458124546,7.32748423,3414.4,3413.7,1.98745055]
[1641458125046,2.18357469,3414.0,3413.2,3.97593116]
[1641458125245,2.18357469,3414.0,3413.0,0.00113685]
[1641458125444,0.30284211,3413.9,3413.0,0.00113685]
[1641458125645,0.30284211,3413.9,3413.0,0.0022737]
[1641458125847,0.00227369,3413.8,3413.0,0.0022737]
[1641458126046,0.00227369,3413.8,3413.0,2.20206243]
[1641458126245,0.00170527,3413.7,3413.1,1.39783482]
[1641458126444,0.00170527,3413.7,3413.1,1.39954009]
[1641458126684,0.00113684,3413.6,3413.2,0.00113685]
[1641458127088,0.00227369,3413.8,3413.2,0.00113685]
[1641458127494,0.00170527,3413.7,3413.2,0.00113685]
[1641458127893,0.00113684,3413.6,3413.2,0.00113685]
[1641458128295,0.00397896,3414.1,3413.2,0.00113685]
[1641458128498,0.00397896,3414.1,3412.9,0.00284212]
[1641458128697,0.00341054,3414.0,3412.9,0.00284212]
[1641458128996,0.00284211,3413.9,3412.9,0.00284212]
[1641458129199,0.00284211,3413.9,3413.8,1.34727708]
[1641458129400,1.79234894,3414.3,3413.8,1.34727708]
[1641458129597,5.8568,3414.2,3413.8,1.34727708]
[1641458129796,5.86134738,3414.2,3413.8,1.34727708]
[1641458129996,6.16134738,3414.2,3413.2,2.21355138]
[1641458130197,6.16134738,3414.2,3413.2,2.56455138]
[1641458130739,6.16134738,3414.2,3413.5,1.98745055]
[1641458131146,6.16134738,3414.2,3413.6,1.36657906]
[1641458131640,6.16134738,3414.2,3413.6,3.35402961]
[1641458132443,5.86134738,3414.2,3413.6,3.35402961]
[1641458132844,5.86134738,3414.2,3413.7,0.351]
[1641458133044,5.86134738,3414.2,3413.7,17.481]
[1641458133444,5.86134738,3414.2,3413.7,0.351]
[1641458133747,5.86134738,3414.2,3413.8,6.18728317]
[1641458133944,5.86134738,3414.2,3413.8,23.31728317]
[1641458133945,6.16134738,3414.2,3413.8,23.31728317]
[1641458134387,5.86134738,3414.2,3413.8,23.31728317]
[1641458134593,5.86134738,3414.2,3414.1,1.48989248]
[1641458135189,5.86134738,3414.2,3414.0,1.46404]
[1641458135389,5.86134738,3414.2,3414.0,4.44598837]
[1641458135590,0.00397896,3414.1,3414.0,2.98194837]
[1641458136590,0.00397896,3414.1,3414.0,1.98641896]
[1641458137191,0.00397896,3414.1,3414.0,3.47634179]
[1641458137491,2.05487026,3414.1,3414.0,1.48992283]
[1641458138134,2.35487026,3414.1,3414.0,1.48992283]
[1641458138634,2.05487026,3414.1,3413.6,1.48992283]
[1641458138834,0.00397896,3414.1,3413.6,1.48992283]
[1641458139038,0.00341054,3414.0,3413.6,1.48992283]
[1641458139233,0.00341054,3414.0,3413.7,1.22170038]
[1641458139435,0.00284211,3413.9,3413.5,1.48992283]
[1641458139840,0.00227369,3413.8,3413.5,1.48992283]
[1641458140041,0.00227369,3413.8,3413.3,2.33741896]
[1641458140246,0.00170527,3413.7,3413.5,2.98194837]
[1641458140442,0.00170527,3413.7,3413.6,1.17401048]
[1641458140641,5.8568,3414.2,3413.6,1.17401048]
[1641458141042,0.00397896,3414.1,3413.7,0.351]
[1641458141444,0.00341054,3414.0,3413.7,0.351]
[1641458141689,5.7821191,3414.2,3413.9,0.73211]
[1641458141890,6.0821191,3414.2,3413.9,0.73211]
[1641458143894,6.0821191,3414.2,3414.0,2.10461163]
[1641458146852,6.0821191,3414.2,3413.8,1.49108865]
[1641458147851,6.0821191,3414.2,3413.9,1.4899518]
[1641458148252,6.0821191,3414.2,3413.9,2.77376549]
[1641458148453,6.0821191,3414.2,3413.9,1.4899518]
[1641458148751,6.0821191,3414.2,3414.0,1.4899518]
[1641458149386,6.0821191,3414.2,3414.1,1.4899518]
[1641458149787,6.08325594,3414.2,3414.1,1.4899518]
[1641458150390,1.0,3414.6,3414.5,6.94]
[1641458150586,5.8573,3414.6,3414.5,6.94]
[1641458151188,5.8573,3414.6,3414.5,9.04461163]
[1641458151587,0.73244,3414.7,3414.5,9.04461163]
[1641458151992,5.8572,3414.6,3414.5,9.04461163]
[1641458152189,2.96369325,3414.7,3414.5,9.04461163]
[1641458152789,2.96369325,3414.7,3414.5,2.10461163]
[1641458153041,2.96369325,3414.7,3414.5,3.56934163]
[1641458153444,1.70085796,3414.7,3414.5,3.56934163]
[1641458154044,3.08797638,3415.0,3414.5,3.56934163]
[1641458154442,0.00397897,3414.9,3414.5,3.56934163]
[1641458154649,3.08797638,3415.0,3414.5,3.56934163]
[1641458154849,0.73233,3414.9,3414.6,0.00170527]
[1641458155050,0.73233,3414.9,3414.6,3.5711269]
[1641458155448,0.73233,3414.9,3414.7,0.00113685]
[1641458156449,5.8569,3414.8,3414.7,0.00113685]
[1641458156688,4.99886315,3414.7,3414.6,2.80543011]
[1641458156889,10.85576315,3414.7,3414.6,1.46481]
[1641458157290,4.99762315,3414.7,3414.6,1.46481]
[1641458157689,1.62314638,3415.0,3414.6,1.46481]
[1641458157888,1.62314638,3415.0,3414.8,0.7323]
[1641458158091,0.00113685,3414.9,3414.8,0.7323]
[1641458158890,0.73346685,3414.9,3414.8,0.7323]
[1641458159694,2.42259451,3414.9,3414.8,0.7323]
[1641458161135,3.77942925,3414.9,3414.8,0.7323]
[1641458162438,2.42259451,3414.9,3414.8,0.7323]
[1641458162637,8.27939451,3414.9,3414.8,0.7323]
[1641458163538,9.63281099,3414.9,3414.8,0.7323]
[1641458164886,8.27939451,3414.9,3414.8,0.7323]
[1641458165686,9.35802648,3414.9,3414.8,0.7323]
[1641458170041,33.3568493,3414.9,3413.4,1.49005724]
[1641458170243,33.3568493,3414.9,3413.2,1.986723]
[1641458170244,0.01262173,3414.0,3413.2,1.986723]
[1641458170443,12.44631,3413.9,3413.8,0.00511581]
[1641458170639,12.44631,3413.9,3413.2,1.986723]
[1641458170640,30.57631,3413.9,3413.4,1.46539]
[1641458170841,1.89180521,3413.8,3413.4,0.20499]
[1641458171040,1.89180521,3413.8,3412.9,0.89914867]
[1641458171041,11.7136,3413.7,3412.9,0.89914867]
[1641458171241,11.7136,3413.7,3412.8,5.86]
[1641458171242,0.01273883,3413.5,3412.8,5.86]
[1641458171438,0.01273883,3413.5,3412.1,8.14893004]
[1641458171439,12.0646,3413.4,3412.1,8.14893004]
[1641458171699,0.73301,3412.8,3412.1,8.14893004]
[1641458171897,11.7136,3412.7,3412.2,0.00454739]
[1641458172098,17.13,3412.5,3412.2,0.00454739]
[1641458172298,11.7136,3412.4,3412.1,0.66447743]
[1641458172498,28.84473685,3412.4,3412.0,0.73304]
[1641458172698,1.73303,3412.3,3411.7,0.88013]
[1641458172901,11.7136,3412.2,3411.7,0.88013]
[1641458173098,11.7136,3412.2,3411.8,0.00227369]
[1641458173899,0.73305,3412.0,3411.9,0.73306]
[1641458174101,11.7136,3412.0,3411.9,0.73306]
[1641458174301,11.7136,3412.0,3411.9,0.00170527]
[1641458174503,13.65532364,3412.0,3411.9,0.00170527]
[1641458174703,13.65532364,3412.0,3411.8,0.20925927]
[1641458174905,14.38836364,3412.0,3411.8,0.94229927]
[1641458175106,14.38836364,3412.0,3411.8,0.73304]
[1641458175552,12.44664,3412.0,3411.8,0.73304]
[1641458175753,12.44664,3412.0,3411.4,1.46617]
[1641458175948,12.79764,3412.0,3411.3,6.94]
[1641458176147,1.0,3411.9,3411.6,0.00170527]
[1641458176347,1.0,3411.9,3411.3,6.94]
[1641458176348,12.44684,3411.8,3411.3,6.94]
[1641458176548,1.85992095,3411.7,3411.5,0.8772]
[1641458176747,28.8436,3411.6,3410.8,1.46639]
[1641458176947,0.012474,3410.8,3410.0,1.0]
[1641458177149,29.1946,3410.7,3410.0,1.0]
[1641458177446,1.46686,3410.5,3410.0,1.0]
[1641458177650,31.08071191,3410.4,3409.8,10.91593116]
[1641458177847,0.73357,3410.2,3409.8,10.91593116]
[1641458178054,11.7136,3410.1,3409.9,0.0096632]
[1641458178251,11.7136,3410.1,3409.9,1.70928372]
[1641458178452,11.48435938,3410.1,3409.9,0.0096632]
[1641458178651,11.48435938,3410.1,3410.0,0.00909477]
[1641458179490,13.33068666,3410.1,3410.0,0.00909477]
[1641458179696,11.48435938,3410.1,3410.0,0.00909477]
[1641458180692,13.38530725,3410.1,3410.0,0.00909477]
[1641458182293,13.38530725,3410.1,3410.0,0.01020093]
[1641458183533,14.2,3409.7,3408.1,1.3855145]
[1641458183735,14.2,3409.7,3408.0,2.37460035]
[1641458183736,0.61249004,3408.7,3408.0,2.37460035]
[1641458183934,0.61249004,3408.7,3406.5,0.15220684]
[1641458183935,0.39663423,3408.5,3406.5,0.15220684]
[1641458184134,0.39663423,3408.5,3407.0,9.58338672]
[1641458184135,0.39663423,3408.3,3407.0,9.58338672]
[1641458184337,0.39663423,3408.1,3407.3,0.01534744]
[1641458184537,0.39663423,3407.9,3407.3,0.01534744]
[1641458184738,0.39663423,3407.9,3407.3,4.744e-05]
[1641458184739,0.39663423,3407.7,3407.3,4.744e-05]
[1641458184939,0.39663423,3407.7,3406.4,6.63121137]
[1641458184940,0.39663423,3407.5,3406.4,5.83121137]
[1641458185138,0.39663423,3407.5,3406.0,1.0]
[1641458185139,0.39663423,3407.0,3406.0,1.0]
[1641458185340,0.39663423,3406.8,3406.5,0.00454738]
[1641458185641,0.39663423,3406.8,3405.9,3.41809159]
[1641458185642,0.39663423,3406.6,3405.9,3.41809159]
[1641458185847,0.39663423,3406.2,3406.1,0.0022737]
[1641458186039,12.23199361,3406.2,3405.7,1.03056343]
[1641458186239,12.23199361,3406.2,3406.1,1.0]
[1641458186694,1.60067468,3405.8,3405.3,1.60865499]
[1641458186993,0.39663423,3405.3,3405.0,0.01955177]
[1641458187298,11.18897251,3405.2,3404.8,1.46879]
[1641458187496,0.3214,3405.1,3404.8,1.46879]
[1641458187697,0.3214,3405.1,3405.0,1.30498859]
[1641458187996,0.3214,3405.1,3405.0,3.4465499]
[1641458188196,0.3214,3405.1,3405.0,4.4809399]
[1641458188398,0.3214,3405.1,3405.0,4.7809399]
[1641458188797,7.29677251,3405.2,3405.0,4.7809399]
[1641458188997,0.00113685,3406.0,3405.0,4.83209072]
[1641458189197,0.00113685,3406.0,3405.9,0.01222855]
[1641458189397,3.67009224,3406.9,3405.9,1.39738285]
[1641458189602,0.73412,3407.0,3405.9,0.01222855]
[1641458189800,0.73412,3407.0,3405.7,1.46816]
[1641458189801,0.00511581,3406.9,3406.7,1.78360691]
[1641458190200,0.00454739,3406.8,3406.7,1.78360691]
[1641458190436,6.60944739,3406.8,3406.7,1.78360691]
[1641458190842,6.60944739,3406.8,3406.3,1.08495173]
[1641458191146,0.00397896,3406.7,3406.3,1.08495173]
[1641458191342,5.8707,3406.6,3406.3,1.08495173]
[1641458191540,5.87411054,3406.6,3406.3,1.08495173]
[1641458191741,0.00284212,3406.5,3406.3,1.08495173]
[1641458191941,0.00284212,3406.5,3406.4,2.01664626]
[1641458192144,5.8707,3406.6,3406.4,2.01664626]
[1641458192544,5.8707,3406.6,3405.2,0.5]
[1641458192744,0.73428,3406.2,3405.1,1.47242896]
[1641458193044,5.8707,3406.6,3405.5,0.73423]
[1641458193444,5.8707,3406.6,3406.5,3.32163061]
[1641458193648,11.7417,3406.6,3406.5,3.32163061]
[1641458193844,11.74511054,3406.6,3406.5,3.32163061]
[1641458194697,0.001,3407.7,3406.6,7.85]
[1641458194995,0.21054295,3408.8,3408.7,2.88269365]
[1641458194996,0.15804023,3408.8,3408.7,2.88269365]
[1641458195893,0.15804023,3408.8,3408.7,1.02519767]
[1641458196098,0.15804023,3408.8,3408.4,1.4671]
[1641458196299,0.15804023,3408.8,3407.3,1.83517352]
[1641458196496,0.73391,3408.3,3407.3,1.83517352]
[1641458196698,17.13,3408.2,3407.3,1.83517352]
[1641458196895,17.13909478,3408.2,3407.3,1.83517352]
[1641458197095,0.00852635,3408.1,3407.3,3.84118494]
[1641458197502,17.13,3408.2,3407.3,3.84118494]
[1641458197503,0.734,3407.9,3407.3,3.84118494]
[1641458197941,0.00682108,3407.8,3407.3,3.84118494]
[1641458198147,2.24846507,3407.8,3407.3,3.84118494]
[1641458198347,17.13625266,3407.7,3406.2,0.351]
[1641458198547,23.00555266,3407.7,3406.5,3.5]
[1641458198751,0.73416,3407.1,3406.5,3.5]
[1641458198952,0.00568423,3407.6,3406.5,3.5]
[1641458199148,0.00227369,3407.0,3406.5,3.5]
[1641458199348,5.8693,3407.7,3407.4,1.41434085]
[1641458199349,0.00511581,3407.5,3407.4,1.41434085]
[1641458199649,5.8693,3407.5,3407.4,1.41434085]
[1641458200050,5.8693,3407.5,3407.4,3.48884208]
[1641458200852,5.8693,3407.5,3407.4,4.08884208]
[1641458201053,5.8693,3407.5,3407.2,1.38344899]
[1641458201458,0.00454739,3407.4,3407.3,1.79906653]
[1641458201698,3.06466008,3409.0,3407.3,2.20097]
[1641458201905,3.06466008,3409.0,3408.0,0.73367]
[1641458202103,0.00682108,3408.6,3408.1,1.39033864]
[1641458202308,0.00682108,3408.6,3408.1,2.58903864]
[1641458202506,0.00625266,3408.5,3408.1,2.58903864]
[1641458202706,0.00625266,3408.5,3408.2,1.74989952]
[1641458202907,0.00568423,3408.4,3408.2,1.74989952]
[1641458203307,0.00511581,3408.3,3408.2,1.74989952]
[1641458204308,0.00511581,3408.3,3408.2,2.34989952]
[1641458204910,0.00511581,3408.3,3408.2,2.70089952]
[1641458205109,0.00511581,3408.3,3408.2,2.71340211]
[1641458205309,3.06466008,3409.0,3408.5,1.4668307]
[1641458205542,3.06466008,3409.0,3408.6,1.41597]
[1641458206144,0.00113685,3408.9,3408.6,1.41597]
[1641458206345,6.01218172,3410.5,3410.2,1.65075056]
[1641458206550,6.01218172,3410.5,3409.8,1.06529962]
[1641458206551,1.0,3410.4,3409.8,1.06529962]
[1641458206745,0.64785947,3410.3,3409.8,1.06529962]
[1641458207247,0.0073895,3410.2,3409.8,1.06529962]
[1641458207449,0.64785947,3409.9,3409.8,1.06529962]
[1641458207649,0.64785947,3409.9,3409.2,0.7333]
[1641458207947,0.00511581,3409.8,3409.6,1.46673]
[1641458208348,0.00454739,3409.7,3409.6,1.46673]
[1641458209199,0.00454739,3409.7,3409.6,2.50953047]
[1641458209603,0.64785947,3409.9,3409.6,2.50953047]
[1641458210604,5.8645,3410.4,3409.6,1.04280047]
[1641458210605,0.64785947,3409.7,3409.6,1.04280047]
[1641458211507,5.80940075,3409.8,3409.6,1.39380047]
[1641458211709,3.3150445,3409.8,3409.6,2.24670047]
[1641458211907,0.77377209,3409.8,3409.6,2.24670047]
[1641458212112,4.42088202,3410.3,3409.6,3.57989547]
[1641458212307,4.42088202,3410.3,3409.9,0.73309]
[1641458212507,4.42037202,3410.4,3409.9,0.73309]
[1641458212708,4.42037202,3410.4,3410.0,0.00170527]
[1641458213153,1.780992,3410.1,3410.0,0.00170527]
[1641458213357,1.780992,3410.1,3410.0,1.95257773]
[1641458213854,1.780992,3410.1,3410.0,5.45356098]
[1641458214055,1.780992,3410.1,3410.0,6.18665768]
[1641458214259,6.20136402,3410.4,3410.1,1.33334655]
[1641458214658,6.18136402,3410.4,3410.1,1.33334655]
[1641458215656,1.780992,3410.2,3410.1,1.33334655]
[1641458216059,1.780992,3410.2,3410.1,1.3344834]
[1641458216916,4.40037202,3410.4,3410.1,1.3344834]
[1641458217114,2.67148799,3410.3,3410.1,1.3344834]
[1641458217314,2.67148799,3410.3,3410.0,0.04191802]
[1641458217521,2.67148799,3410.3,3410.1,1.4136745]
[1641458218519,8.56549238,3410.3,3410.0,0.00098325]
[1641458218719,3.71169789,3410.2,3410.0,8.325e-05]
[1641458218918,1.0,3410.2,3410.0,8.325e-05]
[1641458219118,5.8649,3410.1,3410.0,8.325e-05]
[1641458219521,24.00788345,3410.1,3410.0,8.325e-05]
[1641458219719,24.00788345,3410.1,3408.3,5.17082874]
[1641458219918,1.0,3410.0,3408.3,5.17082874]
[1641458220122,1.0,3410.0,3408.4,0.0096632]
[1641458220318,5.87788345,3410.1,3409.1,1.79215352]
[1641458220319,5.8649,3409.9,3409.1,1.79215352]
[1641458220746,5.8649,3409.9,3409.8,1.03851799]
[1641458220944,10.29674668,3409.9,3409.8,1.03851799]
[1641458221143,10.29674668,3409.9,3409.8,1.04022326]
[1641458221345,10.29674668,3409.9,3409.8,3.30492938]
[1641458222147,7.91994668,3409.9,3409.8,3.30492938]
[1641458222345,7.91994668,3409.9,3409.8,3.60492938]
[1641458222546,12.91994668,3409.9,3409.8,3.90492938]
[1641458222745,8.4881,3409.9,3409.8,3.90492938]
[1641458223648,8.4881,3409.9,3409.8,3.30492938]
[1641458223846,8.4881,3409.9,3409.8,0.00170527]
[1641458224501,8.4881,3409.9,3409.7,0.00227369]
[1641458224904,8.4881,3409.9,3409.7,1.20773914]
[1641458225100,8.4881,3409.9,3409.8,1.81841801]
[1641458225301,8.4881,3409.9,3409.8,1.82012328]
[1641458225504,12.68152614,3409.9,3409.8,0.00170527]
[1641458225804,30.93443388,3409.9,3409.2,0.02018066]
[1641458226001,30.93443388,3409.9,3409.2,0.00292278]
[1641458226002,1.351,3409.8,3409.2,0.00292278]
[1641458226202,1.35384212,3409.8,3409.2,0.00292278]
[1641458226403,0.73365,3409.6,3409.2,0.00292278]
[1641458226603,7.88847202,3409.5,3409.2,0.00292278]
[1641458226803,7.88960887,3409.5,3408.3,1.46722]
[1641458227002,0.0126387,3409.1,3408.3,1.46722]
[1641458227205,0.0126387,3409.1,3408.4,0.00511581]
[1641458227403,1.46766,3408.8,3408.4,0.00511581]
[1641458227601,2.08696,3408.8,3407.4,0.01080004]
[1641458227802,0.6193,3408.8,3407.4,0.01080004]
[1641458228052,3.4881,3409.0,3408.1,1.16954715]
[1641458228448,3.4881,3409.0,3408.2,0.00625265]
[1641458228649,3.4881,3409.0,3408.7,1.71314999]
[1641458228949,3.4881,3409.0,3408.8,0.00284211]
[1641458229350,3.4881,3409.0,3408.5,0.00454738]
[1641458230151,3.4881,3409.0,3408.2,1.02886179]
[1641458230351,4.22178,3409.0,3408.4,0.73369]
[1641458230551,4.22178,3409.0,3408.8,1.26006315]
[1641458230751,3.4881,3409.0,3408.8,1.26006315]
[1641458230950,3.4881,3409.0,3408.9,0.00227369]
[1641458232489,3.4881,3409.0,3407.3,4.9673645]
[1641458232490,3.4881,3409.0,3408.7,0.00341054]
[1641458232692,1.0,3408.9,3408.5,0.00454738]
[1641458232892,7.61357993,3408.8,3408.5,0.00454738]
[1641458233092,18.13,3408.7,3408.5,0.00454738]
[1641458233292,5.67294141,3408.6,3407.5,0.01023162]
[1641458233594,0.73386,3408.1,3407.5,0.01023162]
[1641458233794,8.92884687,3408.6,3407.7,0.73384]
[1641458233995,5.1960736,3408.6,3407.7,0.73384]
[1641458234195,5.4960736,3408.6,3407.8,0.00852635]
[1641458234397,1.0,3408.5,3407.8,0.00852635]
[1641458234595,1.0,3408.5,3407.8,1.64519494]
[1641458234799,1.0,3408.5,3407.9,3.5]
[1641458234995,5.1960736,3408.6,3407.8,0.32477312]
[1641458235196,0.00284211,3408.4,3407.8,0.00114661]
[1641458235448,0.73382,3408.4,3407.8,0.00114661]
[1641458235641,0.00227369,3408.3,3407.8,0.00114661]
[1641458235843,1.47005369,3408.3,3407.5,1.40978661]
[1641458236043,3.48980527,3408.2,3407.4,1.4677]
[1641458236244,3.48980527,3408.2,3407.6,0.00170528]
[1641458236443,0.00113684,3408.1,3407.6,0.00170528]
[1641458236645,0.73394,3407.9,3407.6,0.00170528]
[1641458237042,0.73394,3407.9,3407.1,1.46785]
[1641458237043,3.4881,3407.8,3407.3,0.00341055]
[1641458237242,3.4881,3407.8,3407.1,1.46785]
[1641458237243,1.0,3407.7,3407.2,0.00397897]
[1641458237450,1.3,3407.7,3407.2,0.00397897]
[1641458237644,7.88847202,3407.6,3407.2,0.00397897]
[1641458237847,19.2233318,3407.5,3407.0,0.00511582]
[1641458238048,3.4881,3407.4,3406.9,1.82794215]
[1641458238247,4.95639,3407.4,3406.9,1.82794215]
[1641458238447,4.95639,3407.4,3407.0,0.00511582]
[1641458238852,4.95639,3407.4,3406.7,0.00682109]
[1641458238853,11.86819537,3407.4,3406.7,0.00682109]
[1641458239048,0.73415,3407.0,3406.5,0.00795793]
[1641458239304,0.73415,3407.0,3406.3,0.74326478]
[1641458239305,3.4881,3406.9,3406.3,0.74326478]
[1641458239804,3.4881,3406.9,3406.4,0.00852636]
[1641458240207,0.73415,3406.7,3406.4,0.00852636]
[1641458240405,21.32294484,3406.6,3405.7,2.8008796]
[1641458240604,21.32294484,3406.6,3405.4,3.97856765]
[1641458240605,0.01276607,3406.4,3405.4,3.97856765]
[1641458240805,0.01276607,3406.4,3405.9,0.00286847]
[1641458240806,0.78919997,3406.3,3405.9,0.00286847]
[1641458241004,0.78919997,3406.3,3405.4,3.97856765]
[1641458241005,17.43,3406.1,3405.4,1.69646765]
[1641458241207,17.13,3405.9,3405.6,2.98548374]
[1641458241408,8.23947202,3405.8,3405.6,2.98548374]
[1641458241606,17.13,3405.7,3405.6,2.98548374]
[1641458241810,0.73461,3405.5,3404.8,4.97320956]
[1641458242008,10.62309272,3405.4,3404.8,4.97320956]
[1641458242212,7.88847202,3405.4,3404.8,4.97320956]
[1641458242408,1.0,3405.3,3404.8,4.97320956]
[1641458242612,25.01847202,3405.2,3404.8,4.97320956]
[1641458242809,8.62304202,3405.2,3404.8,4.97320956]
[1641458243044,7.88847202,3405.2,3405.1,0.00760604]
[1641458243249,7.88847202,3405.2,3404.7,1.99902594]
[1641458243649,7.88847202,3405.2,3404.8,0.00170527]
[1641458244051,7.88847202,3405.2,3404.8,0.73612527]
[1641458244451,7.88847202,3405.2,3404.9,0.00113685]
[1641458244652,7.38847202,3405.2,3404.9,0.00113685]
[1641458244850,7.38847202,3405.2,3404.2,0.00511581]
[1641458245052,7.38847202,3405.2,3404.2,0.590617]
[1641458245255,3.31867988,3405.1,3405.0,0.00146434]
[1641458245451,3.31867988,3405.1,3405.0,3.51478225]
[1641458245651,1.31693713,3405.6,3405.0,3.51478225]
[1641458245852,1.16513713,3405.6,3405.1,0.351]
[1641458246054,0.0011632,3406.1,3405.1,0.351]
[1641458246055,0.00227369,3405.5,3405.1,1.93650119]
[1641458246254,1.7694734,3406.1,3405.1,1.93650119]
[1641458246255,1.7694734,3406.1,3405.4,0.01266987]
[1641458246454,1.7694734,3406.1,3405.6,1.46794]
[1641458246698,0.00284212,3406.0,3405.7,3.64601753]
[1641458246994,1.7694734,3406.1,3405.7,0.60500712]
[1641458246995,0.0022737,3405.9,3405.7,0.60500712]
[1641458247393,0.00170527,3405.8,3405.7,0.60500712]
[1641458247994,0.00170527,3405.8,3405.7,3.8304132]
[1641458249000,0.00170527,3405.8,3405.7,5.2984232]
[1641458250206,0.00170527,3405.8,3405.7,0.60500712]
[1641458250454,0.00170527,3405.8,3405.7,0.35598362]
[1641458250853,0.00170527,3405.8,3405.5,1.41833]
[1641458251053,0.00170527,3405.8,3405.5,1.77431362]
[1641458251257,0.00113685,3405.7,3405.5,3.17473451]
[1641458251653,18.74426037,3405.9,3405.5,0.35598362]
[1641458251853,1.0,3405.8,3405.5,0.35598362]
[1641458252253,5.8726,3405.7,3405.0,5.323e-05]
[1641458252454,5.87430527,3405.7,3405.0,5.323e-05]
[1641458252652,1.0,3405.6,3405.1,0.00170527]
[1641458252854,1.96428891,3405.3,3405.1,0.00170527]
[1641458253061,1.96428891,3405.3,3404.3,3.92386751]
[1641458253460,1.96428891,3405.3,3404.4,0.00397897]
[1641458253859,2.21980325,3404.3,3404.1,0.00568424]
[1641458254059,2.21980325,3404.3,3403.8,1.46901]
[1641458254060,1.46928,3405.1,3403.9,1.18061013]
[1641458254299,5.8726,3405.0,3403.9,1.18061013]
[1641458254506,5.8726,3405.0,3404.0,0.00625266]
[1641458254703,1.0,3404.9,3404.0,0.00625266]
[1641458255103,2.12761088,3404.6,3404.0,0.00625266]
[1641458255905,2.12761088,3404.6,3404.1,0.00140953]
[1641458256305,2.12761088,3404.6,3404.2,0.00511581]
[1641458257105,3.60627074,3404.5,3404.2,0.00511581]
[1641458257306,2.86229088,3404.6,3404.2,0.00511581]
[1641458257505,1.0,3404.4,3404.2,0.00511581]
[1641458257705,6.17385,3404.3,3404.2,0.00511581]